Cogmind - Beta 11.1 @@@ ROGUE MODE // 2022.04.23 @ 13:01:13 Player: pappous Result: Destroyed by 8R-AWN with 8R-AWN's Boregun Performance ------------- Evolutions (0) 0 Regions Visited (3) 600 Robots Destroyed (3) 15 Value Destroyed (51) 51 Prototype IDs (23) 460 Alien Tech Used (0) 0 Bonus (-187) -187 TOTAL SCORE: 939 Bonus ------- Aligned with FarCom 300 Friendly Fire -487 Cogmind --------- Core Integrity 0/250 Matter 133/300 Energy 66/100 System Corruption 0% Temperature Cool (0) Movement Walking (680) Ox8 Location -10/Exiles Parts ------- > --- POWER (1) -------- (None) > --- PROPULSION (2) --- Light Treads Aluminum Leg > --- UTILITY (2) ------ Huge Storage Unit Utility Shielding > --- WEAPON (2) ------- Assault Rifle Assault Rifle > --- INVENTORY (25) --- Ion Engine Ion Engine Aluminum Leg Aluminum Leg Aluminum Leg Wheel Improved Heat Sink Large Storage Unit High-capacity Matter Pod (200) Particle Gun Latent Energy Streamer Assault Rifle Assault Rifle Assault Rifle Light Assault Rifle AWS/Autocannon Grenade Launcher Mining Claw Peak State ------------ > --- POWER ------------ (None) > --- PROPULSION ------- Light Treads Aluminum Leg > --- UTILITY ---------- Huge Storage Unit Utility Shielding > --- WEAPON ----------- Latent Energy Streamer Assault Rifle > --- INVENTORY -------- Ion Engine Ion Engine Aluminum Leg Aluminum Leg Aluminum Leg Wheel Improved Heat Sink Large Storage Unit High-capacity Matter Pod Particle Gun Assault Rifle Assault Rifle Assault Rifle Assault Rifle Light Assault Rifle AWS/Autocannon Grenade Launcher Mining Claw [Rating: 20] Favorites ----------- Power Ion Engine Engine Ion Engine Propulsion Wheel Treads Light Treads Leg Aluminum Leg Wheel Wheel Utility Huge Storage Unit Storage Huge Storage Unit Protection Utility Shielding Weapon Assault Rifle Energy Gun Medium Laser Energy Cannon Latent Energy Streamer Ballistic Gun Assault Rifle Launcher Grenade Launcher Build | -11 -10 -10 -10 ------- Run | Scr Mat Min Exi Slots Evolved . | . . . . Power . | . . . . Propulsion . | . . . . Utility . | . . . . Weapon . | . . . . Parts Attached 22 | 6 3 4 9 Power 1 | 1 . . . Engine 1 | 1 . . . Core . | . . . . Reactor . | . . . . Propulsion 5 | 2 . . 3 Treads 3 | 1 . . 2 Leg 1 | . . . 1 Wheel 1 | 1 . . . Hover . | . . . . Flight . | . . . . Utility 4 | 1 3 . . Device . | . . . . Storage 3 | 1 2 . . Processor . | . . . . Hackware . | . . . . Protection 1 | . 1 . . Artifact . | . . . . Weapon 12 | 2 . 4 6 Energy Gun 3 | 1 . 2 . Energy Cannon 1 | . . . 1 Ballistic Gun 6 | 1 . 1 4 Ballistic Cannon . | . . . . Launcher 2 | . . 1 1 Special Weapon . | . . . . Impact Weapon . | . . . . Slashing Weapon . | . . . . Piercing Weapon . | . . . . Special Melee Weapon . | . . . . Unidentified Prototypes . | . . . . Parts Lost 9 | . . 3 6 Power 1 | . . . 1 Propulsion 3 | . . 1 2 Utility . | . . . . Weapon 5 | . . 2 3 Highest Loss Streak 6 | . . 3 6 To Critical Strikes 3 | . . . 3 Average Slot Usage (%) 88 | . 85 90 91 Engine 13 | . 14 14 13 Treads 10 | . 14 7 7 Wheel 13 | . 14 14 13 Storage 14 | . 14 14 14 Protection 7 | . . 14 14 Energy Gun 13 | . 14 11 13 Ballistic Gun 13 | . 14 13 14 Naked Turns . | . . . . Heaviest Build 91 | 14 90 91 90 Greatest Support 20 | 10 20 10 10 Greatest Overweight (x) 9 | 1 8 9 8 Average Overweight (x) 5 | . 3 8 8 Largest Inventory Capacity 25 | 8 25 25 25 Average Capacity 22 | 5 19 25 25 Most Carried 25 | 5 23 25 25 Average Carried 19 | 3 14 23 23 Final Capacity 25 | 8 25 25 25 Final Carried 22 | 4 22 22 20 Class Distribution -------------------- 100% | Mutant Dominant Class ---------------- Mutant | -10/Materials Mutant | -10/Mines Mutant | -10/Exiles Resources | -11 -10 -10 -10 ----------- Run | Scr Mat Min Exi Matter Collected 599 | 199 338 62 . Remotely . | . . . . Salvage Created 257 | . 146 80 31 Parts 6 | . 6 . . Haulers Intercepted 2 | . 2 . . Recyclers Shooed 2 | . 2 . . Parts Field Recycled . | . . . . Retrieved Matter . | . . . . Parts Self-Destructed . | . . . . Prevented . | . . . . Kills | -11 -10 -10 -10 ------- Run | Scr Mat Min Exi Combat Hostiles Destroyed 13 | . 1 8 4 Guns 7 | . 1 4 2 AOE 6 | . . 4 2 Classes Destroyed 3 | . 2 1 . Hauler 2 | . 2 . . Grunt 1 | . 1 . . Assembled 15 | . . 8 7 Best Kill Streak 7 | . 1 7 4 Combat Bots Only 7 | . 1 7 4 Max Kills in Single Turn 4 | . 1 4 3 Gunslinging . | . . . . Exploded 4 | . . 4 2 Melee . | . . . . Uniques/NPCs Destroyed . | . . . . Combat | -11 -10 -10 -10 -------- Run | Scr Mat Min Exi Damage Taken 1240 | . 68 348 824 Core 254 | . . 33 221 Absorbed by Shields . | . . . . Core Remaining (%) 100 | 100 . . . Volleys Fired 40 | . 9 11 20 Largest 2 | . 2 2 2 Hottest 80 | . 70 80 80 Shots Fired 77 | . 18 19 40 Gun 72 | . 18 16 38 Cannon . | . . . . Launcher 5 | . . 3 2 Special . | . . . . Kinetic 37 | . 9 5 23 Thermal 35 | . 9 11 15 Explosive 5 | . . 3 2 Electromagnetic . | . . . . Robot Hit Streak 10 | . 8 8 10 Robot Miss Streak 2 | . 1 1 2 Penetration Max . | . . . . Secondary Targets 1 | . . . 1 Max Gunslinging Chain 1 | . . . 1 Shots Hit Robots 54 | . 14 12 28 Core Hits 42 | . 6 21 15 Critical Kills . | . . . . Critical Parts Destroyed . | . . . . Critical Strikes 3 | . . 1 2 Burn 3 | . . 1 2 Melee Attacks . | . . . . Impact . | . . . . Slashing . | . . . . Piercing . | . . . . Sneak Attacks . | . . . . Combat Hostiles . | . . . . Follow-up Attacks . | . . . . Damage Inflicted 1155 | . 181 426 548 Guns 614 | . 181 150 283 Cannons . | . . . . Explosions 541 | . . 276 265 Melee . | . . . . Ramming . | . . . . Kinetic 395 | . 105 52 238 Thermal 219 | . 76 98 45 Explosive 541 | . . 276 265 Electromagnetic . | . . . . Impact . | . . . . Slashing . | . . . . Piercing . | . . . . Highest Corruption . | . . . . Average Corruption . | . . . . Corruption Purged . | . . . . Corruption Blocked . | . . . . Overload Shots . | . . . . Overflow Damage 4 | . . . 4 Projectiles . | . . . . Explosions 4 | . . . 4 Melee . | . . . . Knockbacks . | . . . . Impact . | . . . . Kinetic . | . . . . Secondary . | . . . . Self-Inflicted Damage . | . . . . Shots . | . . . . Rammed . | . . . . Targets Rammed . | . . . . Kicked . | . . . . Crushed . | . . . . Highest Temperature 134 | . 99 134 45 Average Temperature 28 | . 30 34 19 Received Heat Transfer 140 | . 60 80 . Siege Activations . | . . . . Robots Corrupted . | . . . . Combat Hostiles . | . . . . Parts Fried . | . . . . Impact Corruptions . | . . . . Robots Melted . | . . . . Combat Hostiles . | . . . . Parts Melted 1 | . 1 . . Heat Transferred 858 | . 222 370 266 Parts Sabotaged . | . . . . Parts Stolen . | . . . . Parts Stripped . | . . . . Power Chain Reactions . | . . . . Missiles Intercepted . | . . . . Alert | -11 -10 -10 -10 ------- Run | Scr Mat Min Exi Peak Influence 82 | . 82 63 . Initial . | . . . . Average 15 | . 23 3 . Maximum Alert Level . | . . . . Low Security (%) 100 | 100 100 100 . Level 1 . | . . . . Level 2 . | . . . . Level 3 . | . . . . Level 4 . | . . . . Level 5 . | . . . . High Security . | . . . . Max Security . | . . . . Squads Dispatched 3 | . 3 . . Investigation 2 | . 2 . . Extermination . | . . . . Reinforcement 1 | . 1 . . Assault . | . . . . Garrison . | . . . . Intercept . | . . . . Searches Triggered . | . . . . Construction Impeded . | . . . . Haulers Reinforced . | . . . . Active Scanning Responses . | . . . . Cargo Convoy Interrupts . | . . . . Stealth | -11 -10 -10 -10 --------- Run | Scr Mat Min Exi Distress Signals . | . . . . Communications Jammed . | . . . . Distress Signals . | . . . . Times Spotted 34 | . 10 19 5 Peak Tracking Total 13 | . 2 13 6 Tactical Retreats 5 | . 5 . . Traps | -11 -10 -10 -10 ------- Run | Scr Mat Min Exi Traps Triggered 2 | . 2 . . Indirectly . | . . . . Trap Hack Attempts . | . . . . Triggered . | . . . . Disarmed . | . . . . Reprogrammed . | . . . . Reused . | . . . . Traps Extracted . | . . . . Installed . | . . . . Triggered . | . . . . Machines | -11 -10 -10 -10 ---------- Run | Scr Mat Min Exi Machines Disabled 3 | . . . 3 Max in Single Turn 2 | . . . 2 Machines Sabotaged . | . . . . Garrisons Compromised . | . . . . Overloaded Fab Kills . | . . . . Hacking | -11 -10 -10 -10 --------- Run | Scr Mat Min Exi Machines Accessed 1 | . . . 1 Terminals . | . . . . Fabricators . | . . . . Repair Stations . | . . . . Recycling Units . | . . . . Scanalyzers . | . . . . Garrison Access . | . . . . Total Hacks 1 | . . . 1 Successful 1 | . . . 1 Failed . | . . . . Catastrophic . | . . . . Database Lockouts . | . . . . Manual 1 | . . . 1 Terminals . | . . . . Fabricators . | . . . . Repair Stations . | . . . . Recycling Units . | . . . . Scanalyzers . | . . . . Garrison Access . | . . . . Terminal Hacks 1 | . . . 1 EX-Prototype ID Bank 1 | . . . 1 Fabricator Hacks . | . . . . Repair Station Hacks . | . . . . Recycling Unit Hacks . | . . . . Scanalyzer . | . . . . Garrison Access Hacks . | . . . . Unauthorized Hacks . | . . . . Terminals . | . . . . Fabricators . | . . . . Repair Stations . | . . . . Recycling Units . | . . . . Scanalyzers . | . . . . Garrison Access . | . . . . Data Cores Recovered . | . . . . Used . | . . . . Hacking Detections . | . . . . Full Trace Events . | . . . . Feedback Events . | . . . . Feedback Blocked . | . . . . Robot Schematics Acquired . | . . . . Robots Built . | . . . . Authchips . | . . . . Time . | . . . . Total Robot Build Rating . | . . . . Part Schematics Acquired . | . . . . Parts Built . | . . . . Authchips . | . . . . Time . | . . . . Total Part Build Rating . | . . . . Parts Repaired . | . . . . Time . | . . . . Parts Recycled . | . . . . Recycled Matter . | . . . . Retrieved Matter . | . . . . Retrieved Components . | . . . . Parts Scanalyzed . | . . . . Part Schematics Acquired . | . . . . Parts Damaged . | . . . . Bothacking | -11 -10 -10 -10 ------------ Run | Scr Mat Min Exi Used RIF Installer . | . . . . Robots Hacked . | . . . . Non-combat . | . . . . Combat . | . . . . Robot Hacks Applied . | . . . . Relay Couplers Released . | . . . . Fabnet Peak Effective % . | . . . . Robots Rewired . | . . . . Allies Hacked . | . . . . Hacks Repelled . | . . . . Allies | -11 -10 -10 -10 -------- Run | Scr Mat Min Exi Total Allies . | . . . . Largest Group . | . . . . Highest-Rated Group . | . . . . Highest-Rated Ally . | . . . . Total Orders . | . . . . Ally Attacks . | . . . . Total Damage . | . . . . Kills . | . . . . Allies Corrupted . | . . . . Allies Melted . | . . . . Intel | -11 -10 -10 -10 ------- Run | Scr Mat Min Exi Robot Analysis Total . | . . . . Derelict Logs Recovered 2 | . . 2 . Drone Launches . | . . . . Drone Recoveries . | . . . . Exploration | -11 -10 -10 -10 ------------- Run | Scr Mat Min Exi Turns Passed 2730 | 75 1273 672 710 Spaces Moved 1221 | 72 520 312 317 Core 3 | 3 . . . Treads 246 | . 246 . . Legs . | . . . . Wheels 972 | 69 274 312 317 Hover . | . . . . Flight . | . . . . Fastest Speed 50 | 50 95 200 200 Average Speed 206 | 83 230 200 200 Slowest Speed 480 | 95 480 215 200 Overloaded Moves . | . . . . Propulsion Burnouts . | . . . . Robots Hopped . | . . . . Cave-ins Triggered . | . . . . Exploration Rate (%) 53 | 3 76 74 59 Regions Visited 3 Branch Regions 2 Pre-discovered Areas 1 | . . 1 . Known Exits Taken . | . . . . Unknown Exits Taken 3 | 1 1 1 . Scrap Searched 1 | . . 1 . Spaces Dug . | . . . . Terrain Destroyed 25 | . . 21 4 Melee . | . . . . Projectile . | . . . . AOE 25 | . . 21 4 Terrain Rammed . | . . . . Walls Destroyed . | . . . . Machines Disabled . | . . . . Actions | -11 -10 -10 -10 --------- Run | Scr Mat Min Exi Total 1359 | 86 579 340 354 Wait 28 | . 17 11 . Move 1218 | 71 519 311 317 Hop . | . . . . Pick Up 41 | 9 24 3 5 Fast Attach 2 | 1 1 . . Attach 16 | 5 2 3 6 Detach 1 | . 1 . . Swap 4 | . . 1 3 Drop 9 | . 6 . 3 Fire 40 | . 9 11 20 Melee . | . . . . Ram . | . . . . Kick . | . . . . Crush . | . . . . Escape Stasis . | . . . . Rewire . | . . . . Trap . | . . . . Miscellaneous . | . . . . Route ------- -11/Scrapyard -10/Materials (discovered 4 exits: [*Mat x2] / [*Min x2]) -10/Mines (discovered 3 exits: [*Mat x2] / *Exi) -10/Exiles History --------- Turn | Location | Event 19 | -11/Scrapyard | Discovered new exit (range 16) 76 | -11/Scrapyard | Entered Materials 152 | -10/Materials | Discovered new exit (range 6) 231 | -10/Materials | Met 8R-AWN 242 | -10/Materials | Discovered new exit (range 15) 315 | -10/Materials | Build established: Mutant 376 | -10/Materials | Discovered new exit (range 15) 1025 | -10/Materials | Discovered new exit (range 16) 1349 | -10/Materials | Entered Mines 1351 | -10/Mines | Followed 8R-AWN into the Mines 1404 | -10/Mines | Discovered new exit (range 7) 1428 | -10/Mines | Discovered new exit (range 9) 1678 | -10/Mines | Assembled infested the area 1735 | -10/Mines | Destroyed 7 combat bots 1763 | -10/Mines | Lost 3 parts (1n2w) 1763 | -10/Mines | Learned location of 2 exits from Materials 2009 | -10/Mines | Discovered new exit (range 5) 2021 | -10/Mines | Entered Exiles 2164 | -10/Exiles | Welcomed by 8R-AWN 2198 | -10/Exiles | Met EX-HEX 2250 | -10/Exiles | Met EX-BIN 2274 | -10/Exiles | Aligned with FarCom system 2276 | -10/Exiles | Given EX-Vault access code 2324 | -10/Exiles | Opened EX-Vault 2348 | -10/Exiles | Found Latent Energy Streamer 2354 | -10/Exiles | Found AWS/Autocannon 2401 | -10/Exiles | Warned to stay clear of 0b10 Research branches 2459 | -10/Exiles | Met EX-DEC 2665 | -10/Exiles | Attacked by the Exiles 2688 | -10/Exiles | Core integrity fell below 50% 2717 | -10/Exiles | Core integrity fell below 20% 2731 | -10/Exiles | Destroyed by 8R-AWN with 8R-AWN's Boregun Last Messages --------------- 02689_ Critical hit (Destroy). 02689_ Ion Engine destroyed. 02689_ Penetrated by HV Slug. 02689_ Wheel destroyed. 02691_ Penetrated by HV Slug. 02694_ 8R-AWN suffers critical hit (Burn). 02696_ Penetrated by HV Slug. 02698_ HV Slug penetrates Machine. 02700_ Penetrated by HV Slug. 02700_ HV Slug penetrates Wall. 02703_ Penetrated by HV Slug. 02707_ Critical hit (Destroy). 02707_ Lgt. Treads destroyed. 02707_ Penetrated by HV Slug. 02712_ Med. Laser destroyed. 02712_ HV Slug penetrates Machine. 02714_ Penetrated by HV Slug. 02723_ Critical hit (Destroy). 02723_ Assault Rifle destroyed. 02727_ Penetrated by HV Slug. Map ----- +----------------------------------------------------+ | """#??????????????????????????????????? | | """#??????????????????????????????????? | | """#??????????????????????????????????? | | """#??????????????????????????????????? | | """#??????????????????????????????????? | | """"??????????????????????????????????? | | """#??????????????????????????????????? | | "X" """"??????????????????????????????????? | | """ #??????????????????????????????????? | | """""""""#??????????????????????????????????? | | ###########??????????????????????????????????? | | #????????????????????????????????????????????? | | #????????????????????????????????????????????? | | ##???????????????????????????????????????????? | | ##???####;######????????????????????????????? | | #####"""" """"##???????????????????????????? | | " """ """"##??????????????????????????? | | " " #??????????????????????????? | | """#??????????????????????????? | | a"#???????????#####??????????? | | " "##?????????##" #??????????? | | "###???????#" #??????????? | | "" ""#??????##" ##?????????? | | #""" "#????### ###???????? | | #####""" ###??# ######### | | ????##""" @;#?## #""""## | | ?????#"""" % ;## | | ?????#"" g ## | | ?????"""" #### | | ?????? ""#?#"""""#### | | ????? # ""##?#######??#### | | ????? ######??????????????## | | ???? ##????????????????????? | | ???? " ##?????????????????????? | | ????"" """ "#??????????????????????? | | ??????" " " ""#" % "##??????????????????????? | | ?????????"" ""?## " #???????????????????????? | | ???????????"????## ## ##????????????????????????? | | ????????????????????###??????????????????????????? | | ?????????????????????????????????????????????????? | | ?????????????????????????????????????????????????? | | ?????????????????????????????????????????????????? | | ?????????????????????????????????????????????????? | | ?????????????????????????????????????????????????? | | ?????????????????????????????????????????????????? | | ?????????????????????????????????????????????????? | | ?????????????????????????????????????????????????? | | ?????????????????????????????????????????????????? | | ?????????????????????????????????????????????????? | | ?????????????????????????????????????????????????? | +----------------------------------------------------+ Best States ------------- Heat Dissipation 25 Energy Generation 10 Energy Capacity 250 Matter Stores 300 Matter Capacity 300 Sight Range 16 Terrain Scan Density 10 Utility Shielding 33 Evasion (%) 44 Recoil Reduction 1 Item Schematics ----------------- None Robot Schematics ------------------ None Fabricated ------------ Nothing Alien Tech Used ----------------- None Achievements -------------- None Challenges ------------ None Game ------ Seed FrostPhaseCompactor Manual? 0 Play Time 00:15:30 Cumulative 88.3 hours Start 2022.04.23 @ 12:46:05 End 2022.04.23 @ 13:01:13 Sessions 1 Manual Loads 0 Difficulty Rogue Special Mode None Game No. 119 Rogue 119 Adventurer 0 Explorer 0 Win Type - Total 1 Types 1/0/0/0/0/0/0/0/0 Lore% 51 Gallery% 52 Achievement% 44 Wizard Run 0 Options --------- ASCII 0 Keyboard 0 Movement Mouse Keybinds 0 Fullscreen 1 Font 14/SmallcapsLarge Map View 72x54 Tactical HUD 1 Map Filters NONE Filters NONE Steam 1 RUN: 8a86f79d-d7cd-4cd9-aa48-05a476b63d6f